[Event "*** Titled Tuesday Blitz"]
[Site "Chess.com"]
[Date "2020.12.29"]
[Round "4"]
[White "BeanScreen"]
[Black "NoGalloNoParty"]
[Result "1-0"]
[WhiteElo "2656"]
[BlackElo "2367"]
[TimeControl "180+1"]
[EndTime "10:40:22 PST"]
[Termination "BeanScreen won on time"]

1. e4 {[%clk 0:03:00.9]} 1... c5 {[%clk 0:02:59.5]} 2. Nf3 {[%clk 0:03:00.7]}
2... d6 {[%clk 0:02:59.7]} 3. d4 {[%clk 0:03:00.9]} 3... cxd4 {[%clk 0:03:00]}
4. Nxd4 {[%clk 0:03:01.1]} 4... Nf6 {[%clk 0:03:00.6]} 5. Nc3 {[%clk 0:03:01.4]}
5... a6 {[%clk 0:03:01]} 6. Be3 {[%clk 0:03:01.7]} 6... e5 {[%clk 0:03:00.7]} 7.
Nb3 {[%clk 0:03:01.8]} 7... Be6 {[%clk 0:03:00.9]} 8. h3 {[%clk 0:03:02.3]} 8...
Be7 {[%clk 0:02:57.2]} 9. f4 {[%clk 0:03:02.5]} 9... exf4 {[%clk 0:02:53.5]} 10.
Bxf4 {[%clk 0:03:03.4]} 10... Nc6 {[%clk 0:02:51.8]} 11. Qe2 {[%clk 0:03:03.4]}
11... Ne5 {[%clk 0:02:44.4]} 12. O-O-O {[%clk 0:03:03]} 12... Qc7 {[%clk
0:02:40.6]} 13. g4 {[%clk 0:03:03]} 13... Rc8 {[%clk 0:02:31.4]} 14. Kb1 {[%clk
0:03:03.1]} 14... O-O {[%clk 0:02:16.4]} 15. g5 {[%clk 0:03:03]} 15... Nfd7
{[%clk 0:02:13.8]} 16. Nd5 {[%clk 0:02:59.9]} 16... Bxd5 {[%clk 0:02:13.1]} 17.
exd5 {[%clk 0:03:00.8]} 17... b5 {[%clk 0:02:05.2]} 18. h4 {[%clk 0:03:00.6]}
18... Rfe8 {[%clk 0:01:55.6]} 19. h5 {[%clk 0:03:00.5]} 19... Bf8 {[%clk
0:01:52.8]} 20. Qg2 {[%clk 0:02:59]} 20... Nc4 {[%clk 0:01:34.5]} 21. g6 {[%clk
0:02:54.9]} 21... Ndb6 {[%clk 0:01:27.4]} 22. gxh7+ {[%clk 0:02:17]} 22... Kh8
{[%clk 0:01:24.5]} 23. h6 {[%clk 0:02:15.9]} 23... g6 {[%clk 0:01:22]} 24. Bxc4
{[%clk 0:01:40.6]} 24... Qxc4 {[%clk 0:01:03.7]} 25. Rd4 {[%clk 0:01:16]} 25...
Qe2 {[%clk 0:00:28.9]} 26. Qg5 {[%clk 0:00:30.6]} 26... Be7 {[%clk 0:00:23]} 27.
Qg3 {[%clk 0:00:23.3]} 27... Bf6 {[%clk 0:00:21.7]} 28. Rd2 {[%clk 0:00:22.5]}
28... Qe4 {[%clk 0:00:18.1]} 29. Rhd1 {[%clk 0:00:21.6]} 29... Nc4 {[%clk
0:00:17.6]} 30. Bg5 {[%clk 0:00:18.9]} 30... Be5 {[%clk 0:00:09.2]} 31. Qf2
{[%clk 0:00:15.3]} 31... Nxd2+ {[%clk 0:00:07.6]} 32. Rxd2 {[%clk 0:00:15.4]}
32... f6 {[%clk 0:00:06.7]} 33. Bxf6+ {[%clk 0:00:15.3]} 33... Kxh7 {[%clk
0:00:06.4]} 34. Bg5 {[%clk 0:00:12.2]} 34... Rf8 {[%clk 0:00:04.9]} 35. Qa7+
{[%clk 0:00:12]} 35... Kh8 {[%clk 0:00:03.7]} 36. a3 {[%clk 0:00:10.5]} 36...
Qf5 {[%clk 0:00:02.3]} 37. Ka2 {[%clk 0:00:07.2]} 37... Qxg5 {[%clk 0:00:01.8]}
38. Rd1 {[%clk 0:00:03.7]} 38... Qf6 {[%clk 0:00:02.5]} 39. Rg1 {[%clk
0:00:03.5]} 39... Qf7 {[%clk 0:00:03.1]} 40. Qxa6 {[%clk 0:00:03.2]} 40... Kh7
{[%clk 0:00:03.6]} 41. Qxb5 {[%clk 0:00:03.5]} 41... Qf6 {[%clk 0:00:03.9]} 42.
Qd3 {[%clk 0:00:03.5]} 42... Rf7 {[%clk 0:00:04.3]} 43. Rh1 {[%clk 0:00:03.7]}
43... Rg8 {[%clk 0:00:04.7]} 44. Na5 {[%clk 0:00:03.9]} 44... Bxb2 {[%clk
0:00:05.1]} 45. Nc6 {[%clk 0:00:03.8]} 45... Be5 {[%clk 0:00:06]} 46. Qc4 {[%clk
0:00:03.1]} 46... Qf5 {[%clk 0:00:06.5]} 47. Rb1 {[%clk 0:00:03]} 47... Bh8
{[%clk 0:00:07.1]} 48. Nb4 {[%clk 0:00:02.8]} 48... Qf6 {[%clk 0:00:07.6]} 49.
Qb3 {[%clk 0:00:03.2]} 49... Ra7 {[%clk 0:00:07.9]} 50. a4 {[%clk 0:00:03.5]}
50... Rga8 {[%clk 0:00:08]} 51. Ka3 {[%clk 0:00:02]} 51... Rxa4+ {[%clk
0:00:08.5]} 52. Qxa4 {[%clk 0:00:02.3]} 52... Rxa4+ {[%clk 0:00:09.1]} 53. Kxa4
{[%clk 0:00:02.5]} 53... Kxh6 {[%clk 0:00:09.7]} 54. Rh1+ {[%clk 0:00:01.5]}
54... Kg7 {[%clk 0:00:10.1]} 55. Rh3 {[%clk 0:00:02.4]} 55... Kg8 {[%clk
0:00:09.8]} 56. Kb3 {[%clk 0:00:02.7]} 56... Bg7 {[%clk 0:00:10.3]} 57. Rd3
{[%clk 0:00:03.1]} 57... Qf5 {[%clk 0:00:10.6]} 58. Nc6 {[%clk 0:00:02.9]} 58...
Be5 {[%clk 0:00:10.9]} 59. Ne7+ {[%clk 0:00:02.9]} 59... Kf7 {[%clk 0:00:10.3]}
60. Nxf5 {[%clk 0:00:03.8]} 60... gxf5 {[%clk 0:00:11]} 61. Rf3 {[%clk
0:00:03.9]} 61... Kf6 {[%clk 0:00:11.4]} 62. c4 {[%clk 0:00:04.1]} 62... f4
{[%clk 0:00:12.3]} 63. Kc2 {[%clk 0:00:04.5]} 63... Kf5 {[%clk 0:00:12.8]} 64.
Kd3 {[%clk 0:00:04.9]} 64... Kg4 {[%clk 0:00:13.6]} 65. Ke4 {[%clk 0:00:05.6]}
65... Kh4 {[%clk 0:00:12.3]} 66. c5 {[%clk 0:00:05.4]} 66... Kg4 {[%clk
0:00:13.2]} 67. c6 {[%clk 0:00:05.3]} 1-0

[Event "*** Titled Tuesday Blitz"]
[Site "Chess.com"]
[Date "2020.12.29"]
[Round "4"]
[White "Blue_Ratatoeskr"]
[Black "Gulkov_Igor"]
[Result "0-1"]
[WhiteElo "2343"]
[BlackElo "2542"]
[TimeControl "180+1"]
[EndTime "10:40:23 PST"]
[Termination "Gulkov_Igor won by resignation"]

1. c4 {[%clk 0:02:52.5]} 1... g6 {[%clk 0:02:59.1]} 2. g3 {[%clk 0:02:52.3]}
2... Bg7 {[%clk 0:02:59.4]} 3. Bg2 {[%clk 0:02:52.9]} 3... Nf6 {[%clk
0:02:59.7]} 4. Nc3 {[%clk 0:02:53.3]} 4... d6 {[%clk 0:02:57.6]} 5. e4 {[%clk
0:02:53.7]} 5... O-O {[%clk 0:02:57.6]} 6. Nge2 {[%clk 0:02:54.1]} 6... c5
{[%clk 0:02:58]} 7. a3 {[%clk 0:02:53.1]} 7... Nc6 {[%clk 0:02:57.8]} 8. Rb1
{[%clk 0:02:52]} 8... a5 {[%clk 0:02:46.5]} 9. d3 {[%clk 0:02:50.6]} 9... Ne8
{[%clk 0:02:45.3]} 10. O-O {[%clk 0:02:39]} 10... Nc7 {[%clk 0:02:44.3]} 11. Be3
{[%clk 0:02:39]} 11... Nd4 {[%clk 0:02:43.4]} 12. h3 {[%clk 0:02:35]} 12... Bd7
{[%clk 0:02:35.3]} 13. Nd5 {[%clk 0:02:29.9]} 13... Nxd5 {[%clk 0:02:30.1]} 14.
exd5 {[%clk 0:02:21.4]} 14... Nxe2+ {[%clk 0:02:15.7]} 15. Qxe2 {[%clk
0:02:20.6]} 15... a4 {[%clk 0:02:06.7]} 16. b4 {[%clk 0:02:12.6]} 16... axb3
{[%clk 0:01:59.8]} 17. Rxb3 {[%clk 0:02:12.3]} 17... Qc7 {[%clk 0:01:41]} 18.
Rfb1 {[%clk 0:02:05.1]} 18... Ra7 {[%clk 0:01:39.1]} 19. Bc1 {[%clk 0:01:41.1]}
19... Re8 {[%clk 0:01:35.6]} 20. Bb2 {[%clk 0:01:39]} 20... Bxb2 {[%clk
0:01:23.2]} 21. Qxb2 {[%clk 0:01:37.8]} 21... Bc8 {[%clk 0:01:21.8]} 22. h4
{[%clk 0:01:33.9]} 22... Ra5 {[%clk 0:00:42.5]} 23. h5 {[%clk 0:01:29.1]} 23...
Qd7 {[%clk 0:00:35.8]} 24. h6 {[%clk 0:01:21.6]} 24... f6 {[%clk 0:00:33.9]} 25.
Qe2 {[%clk 0:01:17.4]} 25... Qf5 {[%clk 0:00:31.8]} 26. Qe3 {[%clk 0:01:03.1]}
26... Qg5 {[%clk 0:00:31.4]} 27. Qxg5 {[%clk 0:00:57.2]} 27... fxg5 {[%clk
0:00:31]} 28. Kh2 {[%clk 0:00:53.7]} 28... Kf7 {[%clk 0:00:28.4]} 29. Re1 {[%clk
0:00:50.3]} 29... g4 {[%clk 0:00:19.8]} 30. f3 {[%clk 0:00:45]} 30... Kf6 {[%clk
0:00:19.2]} 31. fxg4 {[%clk 0:00:42.7]} 31... Kg5 {[%clk 0:00:19.3]} 32. Bh3
{[%clk 0:00:40.7]} 32... Ra7 {[%clk 0:00:12.9]} 33. Re4 {[%clk 0:00:34.7]} 33...
Bd7 {[%clk 0:00:12.2]} 34. Kg2 {[%clk 0:00:32.5]} 34... e5 {[%clk 0:00:12.3]}
35. dxe6 {[%clk 0:00:29.5]} 35... Rxe6 {[%clk 0:00:12]} 36. Rxe6 {[%clk
0:00:27.3]} 36... Bxe6 {[%clk 0:00:11.9]} 37. Rb6 {[%clk 0:00:25.6]} 37... Bxg4
{[%clk 0:00:09.2]} 38. Bxg4 {[%clk 0:00:23.3]} 38... Kxg4 {[%clk 0:00:08.9]} 39.
Rxd6 {[%clk 0:00:22.9]} 39... Kg5 {[%clk 0:00:09.6]} 40. Rd5+ {[%clk 0:00:20.8]}
40... Kxh6 {[%clk 0:00:09.5]} 41. Rxc5 {[%clk 0:00:21.4]} 41... Rxa3 {[%clk
0:00:10.2]} 42. Rd5 {[%clk 0:00:20.6]} 42... Rc3 {[%clk 0:00:09.4]} 43. Kf3
{[%clk 0:00:19.2]} 43... Kg7 {[%clk 0:00:08.2]} 44. Ke4 {[%clk 0:00:19]} 44...
Rb3 {[%clk 0:00:08.3]} 45. g4 {[%clk 0:00:19.1]} 45... h6 {[%clk 0:00:08]} 46.
Ke5 {[%clk 0:00:17.6]} 46... Rb6 {[%clk 0:00:08.2]} 47. Rd7+ {[%clk 0:00:17.4]}
47... Kf8 {[%clk 0:00:07.8]} 48. c5 {[%clk 0:00:17]} 48... Rb5 {[%clk
0:00:07.5]} 49. d4 {[%clk 0:00:15.5]} 49... b6 {[%clk 0:00:07.5]} 50. Kf6 {[%clk
0:00:14.1]} 50... Ke8 {[%clk 0:00:07]} 51. Re7+ {[%clk 0:00:13.8]} 51... Kd8
{[%clk 0:00:06.6]} 52. c6 {[%clk 0:00:14]} 52... Rd5 {[%clk 0:00:06]} 53. Rd7+
{[%clk 0:00:01.4]} 53... Rxd7 {[%clk 0:00:05.5]} 54. cxd7 {[%clk 0:00:02.1]}
54... b5 {[%clk 0:00:06.4]} 55. Kxg6 {[%clk 0:00:02.9]} 55... b4 {[%clk
0:00:06.8]} 56. Kxh6 {[%clk 0:00:02.6]} 56... b3 {[%clk 0:00:07.5]} 57. g5
{[%clk 0:00:03.5]} 57... b2 {[%clk 0:00:08.1]} 58. g6 {[%clk 0:00:04.4]} 58...
b1=Q {[%clk 0:00:08.6]} 59. g7 {[%clk 0:00:04.5]} 59... Qh1+ {[%clk 0:00:09.3]}
60. Kg6 {[%clk 0:00:04.6]} 60... Qg2+ {[%clk 0:00:10]} 61. Kf7 {[%clk
0:00:04.5]} 61... Qf3+ {[%clk 0:00:10.2]} 62. Kg6 {[%clk 0:00:04.4]} 62... Qg4+
{[%clk 0:00:10.4]} 63. Kf6 {[%clk 0:00:03.9]} 63... Kxd7 {[%clk 0:00:09.3]} 64.
Kf7 {[%clk 0:00:03.8]} 64... Qf5+ {[%clk 0:00:09.3]} 65. Kg8 {[%clk 0:00:03.9]}
65... Ke7 {[%clk 0:00:09.7]} 66. Kh8 {[%clk 0:00:02.7]} 66... Qh5+ {[%clk
0:00:09.3]} 67. Kg8 {[%clk 0:00:03]} 67... Kf6 {[%clk 0:00:08.4]} 0-1

[Event "*** Titled Tuesday Blitz"]
[Site "Chess.com"]
[Date "2020.12.29"]
[Round "4"]
[White "Alomaterapia"]
[Black "GregShahade"]
[Result "1-0"]
[WhiteElo "2496"]
[BlackElo "2660"]
[TimeControl "180+1"]
[EndTime "10:40:27 PST"]
[Termination "Alomaterapia won by resignation"]

1. e4 {[%clk 0:03:00.9]} 1... e5 {[%clk 0:03:00.1]} 2. Nf3 {[%clk 0:03:00.7]}
2... Nc6 {[%clk 0:03:00.6]} 3. Bc4 {[%clk 0:03:01.1]} 3... Nf6 {[%clk
0:03:00.5]} 4. d4 {[%clk 0:03:00.8]} 4... exd4 {[%clk 0:02:53.1]} 5. e5 {[%clk
0:03:01.7]} 5... Ne4 {[%clk 0:02:53.4]} 6. O-O {[%clk 0:02:54.1]} 6... Be7
{[%clk 0:02:47.4]} 7. Re1 {[%clk 0:02:47.6]} 7... d5 {[%clk 0:02:40.3]} 8. exd6
{[%clk 0:02:47.7]} 8... Nxd6 {[%clk 0:02:40.3]} 9. Bd5 {[%clk 0:02:47.7]} 9...
O-O {[%clk 0:02:40.1]} 10. Bxc6 {[%clk 0:02:44.1]} 10... bxc6 {[%clk 0:02:41]}
11. Nxd4 {[%clk 0:02:44.4]} 11... Bd7 {[%clk 0:02:41.4]} 12. Qf3 {[%clk
0:02:36.8]} 12... Re8 {[%clk 0:02:41.3]} 13. Nc3 {[%clk 0:02:27.6]} 13... Bf6
{[%clk 0:02:36]} 14. Be3 {[%clk 0:02:16.2]} 14... Nc4 {[%clk 0:02:30.9]} 15.
Nxc6 {[%clk 0:02:07.6]} 15... Bxc6 {[%clk 0:02:27.9]} 16. Qxc6 {[%clk
0:02:08.5]} 16... Nxe3 {[%clk 0:02:27]} 17. Rxe3 {[%clk 0:02:02.7]} 17... Rxe3
{[%clk 0:02:21.6]} 18. fxe3 {[%clk 0:02:03.6]} 18... Rb8 {[%clk 0:02:21.9]} 19.
Rd1 {[%clk 0:01:59.2]} 19... Qe7 {[%clk 0:02:21.6]} 20. Nd5 {[%clk 0:01:58.2]}
20... Qe5 {[%clk 0:02:13.1]} 21. b3 {[%clk 0:01:39.4]} 21... h6 {[%clk
0:01:22.9]} 22. Qxc7 {[%clk 0:01:34.3]} 22... Qxc7 {[%clk 0:01:18]} 23. Nxc7
{[%clk 0:01:34.3]} 23... Rc8 {[%clk 0:01:18.1]} 24. Rd7 {[%clk 0:01:34.4]} 24...
Be5 {[%clk 0:01:18]} 25. Nd5 {[%clk 0:01:11.8]} 25... Rxc2 {[%clk 0:01:13.9]}
26. Rxa7 {[%clk 0:01:10.1]} 26... Rd2 {[%clk 0:01:12.5]} 27. Ra5 {[%clk
0:01:01]} 27... Kh7 {[%clk 0:01:10.9]} 28. g3 {[%clk 0:00:48.4]} 28... Bd6
{[%clk 0:01:06.5]} 29. a4 {[%clk 0:00:45.2]} 29... Rb2 {[%clk 0:01:03.3]} 30.
Rb5 {[%clk 0:00:45]} 30... h5 {[%clk 0:01:00.3]} 31. Nf4 {[%clk 0:00:41.4]}
31... g6 {[%clk 0:00:54.9]} 32. a5 {[%clk 0:00:41.5]} 32... Ra2 {[%clk
0:00:46.4]} 33. b4 {[%clk 0:00:40.5]} 33... Ra3 {[%clk 0:00:44.8]} 34. Kf2
{[%clk 0:00:37.5]} 34... Ra2+ {[%clk 0:00:44.1]} 35. Kg1 {[%clk 0:00:32.1]}
35... h4 {[%clk 0:00:34.4]} 36. gxh4 {[%clk 0:00:30]} 36... Rb2 {[%clk
0:00:30.6]} 37. h5 {[%clk 0:00:20.6]} 37... g5 {[%clk 0:00:17]} 38. Rxg5 {[%clk
0:00:20.5]} 38... Rxb4 {[%clk 0:00:15.6]} 39. Rf5 {[%clk 0:00:20.8]} 39... Kg7
{[%clk 0:00:14.3]} 40. Kg2 {[%clk 0:00:20.9]} 40... Ra4 {[%clk 0:00:14.5]} 41.
h6+ {[%clk 0:00:16.4]} 41... Kxh6 {[%clk 0:00:14.3]} 42. Rf6+ {[%clk 0:00:16.7]}
42... Kg5 {[%clk 0:00:14.6]} 43. Rxd6 {[%clk 0:00:17]} 43... f5 {[%clk 0:00:13]}
44. Rg6+ {[%clk 0:00:15.7]} 44... Kh4 {[%clk 0:00:13.4]} 45. Kf3 {[%clk
0:00:14.1]} 45... Ra1 {[%clk 0:00:08.7]} 46. Rh6+ {[%clk 0:00:12.7]} 46... Kg5
{[%clk 0:00:08.1]} 47. Rb6 {[%clk 0:00:11.4]} 47... Rxa5 {[%clk 0:00:07.1]} 48.
Rb2 {[%clk 0:00:11]} 48... Ra4 {[%clk 0:00:06.6]} 49. Rg2+ {[%clk 0:00:10.8]}
49... Kh4 {[%clk 0:00:07]} 50. Rf2 {[%clk 0:00:09.7]} 50... Ra3 {[%clk 0:00:07]}
51. Ke2 {[%clk 0:00:09]} 51... Ra2+ {[%clk 0:00:07]} 52. Kf3 {[%clk 0:00:09.6]}
52... Ra3 {[%clk 0:00:07.5]} 53. Ng6+ {[%clk 0:00:09.5]} 53... Kh3 {[%clk
0:00:07.4]} 54. Ne7 {[%clk 0:00:09.7]} 54... Ra4 {[%clk 0:00:04.8]} 55. Ke2
{[%clk 0:00:07.4]} 55... Ra2+ {[%clk 0:00:04.5]} 56. Ke1 {[%clk 0:00:07.5]}
56... Ra5 {[%clk 0:00:05.2]} 57. Nxf5 {[%clk 0:00:06.5]} 57... Ra1+ {[%clk
0:00:05.4]} 58. Ke2 {[%clk 0:00:06.4]} 58... Ra2+ {[%clk 0:00:04.9]} 59. Kf3
{[%clk 0:00:05.2]} 59... Ra4 {[%clk 0:00:05.2]} 60. Nd4 {[%clk 0:00:03.7]} 60...
Ra6 {[%clk 0:00:05]} 61. Ke4 {[%clk 0:00:04.1]} 61... Ra8 {[%clk 0:00:04.4]} 62.
Kd3 {[%clk 0:00:04.6]} 62... Ra3+ {[%clk 0:00:04]} 63. Ke4 {[%clk 0:00:05.1]}
63... Ra4 {[%clk 0:00:04.2]} 64. Kd5 {[%clk 0:00:05.2]} 64... Ra5+ {[%clk
0:00:04.6]} 65. Kc6 {[%clk 0:00:05]} 65... Ra6+ {[%clk 0:00:05.2]} 66. Kb5
{[%clk 0:00:05]} 66... Ra3 {[%clk 0:00:06.1]} 67. e4 {[%clk 0:00:05.2]} 67...
Re3 {[%clk 0:00:06.1]} 68. Rf4 {[%clk 0:00:04.6]} 68... Re1 {[%clk 0:00:05.9]}
69. Kc5 {[%clk 0:00:04.3]} 69... Kxh2 {[%clk 0:00:05.9]} 70. Nf3+ {[%clk
0:00:04.3]} 70... Kg3 {[%clk 0:00:05.9]} 71. Nxe1 {[%clk 0:00:04.1]} 71... Kxf4
{[%clk 0:00:06.7]} 72. Kd5 {[%clk 0:00:04.7]} 72... Ke3 {[%clk 0:00:06.9]} 73.
e5 {[%clk 0:00:05.1]} 73... Kd2 {[%clk 0:00:07.8]} 74. e6 {[%clk 0:00:05.7]}
74... Kxe1 {[%clk 0:00:08.7]} 75. e7 {[%clk 0:00:06.4]} 75... Kf1 {[%clk
0:00:09.6]} 76. e8=Q {[%clk 0:00:06.7]} 76... Kg1 {[%clk 0:00:10.5]} 77. Qe2
{[%clk 0:00:06.7]} 1-0

[Event "*** Titled Tuesday Blitz"]
[Site "Chess.com"]
[Date "2020.12.29"]
[Round "4"]
[White "ehrenfeld"]
[Black "Twitch_ElhamBlitz05"]
[Result "1/2-1/2"]
[WhiteElo "2562"]
[BlackElo "2886"]
[TimeControl "180+1"]
[EndTime "10:40:29 PST"]
[Termination "Game drawn by agreement"]

1. e4 {[%clk 0:03:00.9]} 1... c6 {[%clk 0:02:59.6]} 2. d4 {[%clk 0:03:00.1]}
2... d5 {[%clk 0:03:00.5]} 3. exd5 {[%clk 0:03:00.3]} 3... cxd5 {[%clk
0:03:00.9]} 4. Bd3 {[%clk 0:03:00.7]} 4... Nf6 {[%clk 0:03:01.8]} 5. c3 {[%clk
0:03:00.9]} 5... g6 {[%clk 0:03:02.7]} 6. Nf3 {[%clk 0:03:00]} 6... Bg7 {[%clk
0:03:03.3]} 7. O-O {[%clk 0:02:59.9]} 7... O-O {[%clk 0:03:04.2]} 8. Re1 {[%clk
0:02:59.9]} 8... Nc6 {[%clk 0:03:05.1]} 9. Bf4 {[%clk 0:02:58.8]} 9... Bf5
{[%clk 0:03:05.6]} 10. Bf1 {[%clk 0:02:57.7]} 10... Rc8 {[%clk 0:03:04.3]} 11.
Nbd2 {[%clk 0:02:56.9]} 11... a6 {[%clk 0:03:03.3]} 12. h3 {[%clk 0:02:53.1]}
12... Ne4 {[%clk 0:02:59.6]} 13. Nxe4 {[%clk 0:02:52.4]} 13... Bxe4 {[%clk
0:03:00.5]} 14. Nd2 {[%clk 0:02:52]} 14... Bf5 {[%clk 0:02:59.9]} 15. a4 {[%clk
0:02:39.5]} 15... Qb6 {[%clk 0:02:57.5]} 16. Qb3 {[%clk 0:02:38.3]} 16... Qa7
{[%clk 0:02:44.8]} 17. a5 {[%clk 0:02:35.6]} 17... Rfd8 {[%clk 0:02:39.6]} 18.
Qa4 {[%clk 0:02:34.6]} 18... Re8 {[%clk 0:02:11.9]} 19. Qa3 {[%clk 0:02:30.8]}
19... e5 {[%clk 0:02:09.5]} 20. dxe5 {[%clk 0:02:27.1]} 20... Nxe5 {[%clk
0:02:04.2]} 21. Rad1 {[%clk 0:02:17.1]} 21... Nd3 {[%clk 0:01:45.8]} 22. Bxd3
{[%clk 0:02:11]} 22... Bxd3 {[%clk 0:01:45.6]} 23. Be3 {[%clk 0:01:41.3]} 23...
Qb8 {[%clk 0:01:43.4]} 24. Nf3 {[%clk 0:01:40.6]} 24... Be4 {[%clk 0:01:39.2]}
25. Nd4 {[%clk 0:01:38.1]} 25... Qc7 {[%clk 0:01:38]} 26. Qb4 {[%clk 0:01:30.6]}
26... Qd7 {[%clk 0:01:28.4]} 27. Bf4 {[%clk 0:01:23.1]} 27... Rc4 {[%clk
0:01:27.4]} 28. Qd6 {[%clk 0:01:22.1]} 28... Qxd6 {[%clk 0:01:20.6]} 29. Bxd6
{[%clk 0:01:22.1]} 29... Rd8 {[%clk 0:00:56.2]} 30. Bf4 {[%clk 0:01:16.2]} 30...
Bxd4 {[%clk 0:00:47.4]} 31. Rxd4 {[%clk 0:01:14.5]} 31... Rxd4 {[%clk
0:00:47.8]} 32. cxd4 {[%clk 0:01:14.3]} 32... Rd7 {[%clk 0:00:41.2]} 33. Rc1
{[%clk 0:01:08.7]} 33... f6 {[%clk 0:00:28.3]} 34. f3 {[%clk 0:00:52.9]} 34...
Bd3 {[%clk 0:00:25.6]} 35. Rc7 {[%clk 0:00:49.2]} 35... Rxc7 {[%clk 0:00:25.7]}
36. Bxc7 {[%clk 0:00:48.3]} 36... Kf7 {[%clk 0:00:26.5]} 37. b4 {[%clk
0:00:45.7]} 37... Ke6 {[%clk 0:00:26.5]} 38. Kf2 {[%clk 0:00:42.1]} 38... Kd7
{[%clk 0:00:25.7]} 39. Bb6 {[%clk 0:00:41.4]} 39... Kc6 {[%clk 0:00:26.3]} 40.
Bc5 {[%clk 0:00:41.5]} 40... Kb5 {[%clk 0:00:26.4]} 41. g3 {[%clk 0:00:40.1]}
41... Kc4 {[%clk 0:00:26.5]} 42. h4 {[%clk 0:00:40.3]} 42... Bf5 {[%clk
0:00:24.5]} 43. Ke3 {[%clk 0:00:40.1]} 43... Bd7 {[%clk 0:00:22.2]} 44. Kf2
{[%clk 0:00:40]} 44... g5 {[%clk 0:00:20.3]} 45. hxg5 {[%clk 0:00:38.3]} 45...
fxg5 {[%clk 0:00:21.2]} 46. g4 {[%clk 0:00:38.7]} 46... Kd3 {[%clk 0:00:18.8]}
47. Bb6 {[%clk 0:00:37.8]} 47... Be8 {[%clk 0:00:18.7]} 48. Bc5 {[%clk
0:00:36.7]} 48... Bg6 {[%clk 0:00:12.9]} 49. Bb6 {[%clk 0:00:35.3]} 49... h5
{[%clk 0:00:12.8]} 50. gxh5 {[%clk 0:00:32.8]} 50... Bxh5 {[%clk 0:00:13.7]} 51.
Bc5 {[%clk 0:00:31.5]} 51... Bg6 {[%clk 0:00:12.5]} 52. Bb6 {[%clk 0:00:30.8]}
52... Kc4 {[%clk 0:00:12.2]} 53. Bc5 {[%clk 0:00:30.6]} 53... Bf5 {[%clk
0:00:12.7]} 54. Ke3 {[%clk 0:00:30.3]} 54... Kb5 {[%clk 0:00:07.5]} 55. Be7
{[%clk 0:00:28.5]} 55... g4 {[%clk 0:00:03.3]} 56. fxg4 {[%clk 0:00:26.6]} 56...
Bxg4 {[%clk 0:00:04.2]} 57. Bc5 {[%clk 0:00:26.5]} 57... Bf5 {[%clk 0:00:04.2]}
58. Kd2 {[%clk 0:00:26.3]} 58... Be4 {[%clk 0:00:04.6]} 59. Kc3 {[%clk 0:00:26]}
59... Kc6 {[%clk 0:00:05.2]} 60. Bf8 {[%clk 0:00:25.3]} 60... Kd7 {[%clk
0:00:05.7]} 61. Bg7 {[%clk 0:00:25.1]} 61... Kc7 {[%clk 0:00:06.6]} 62. Be5+
{[%clk 0:00:25.1]} 62... Kc8 {[%clk 0:00:07.5]} 63. Bf4 {[%clk 0:00:25.4]} 63...
Kd7 {[%clk 0:00:08.4]} 64. Be5 {[%clk 0:00:25.6]} 64... Ke6 {[%clk 0:00:09.3]}
65. Bf4 {[%clk 0:00:25.7]} 65... Kf5 {[%clk 0:00:10.2]} 66. Bc7 {[%clk
0:00:25.8]} 66... Kg4 {[%clk 0:00:11.1]} 67. Bd6 {[%clk 0:00:25.8]} 67... Kf3
{[%clk 0:00:12]} 68. Be5 {[%clk 0:00:26]} 68... Ke2 {[%clk 0:00:12.9]} 69. Bd6
{[%clk 0:00:26.4]} 69... Bd3 {[%clk 0:00:13.6]} 70. Be5 {[%clk 0:00:27]} 70...
Bc4 {[%clk 0:00:14.5]} 71. Bd6 {[%clk 0:00:27.6]} 71... Ke3 {[%clk 0:00:15.2]}
72. Be5 {[%clk 0:00:28.5]} 72... Ke4 {[%clk 0:00:16.1]} 73. Bd6 {[%clk
0:00:29.1]} 73... Kf5 {[%clk 0:00:17]} 74. Bc5 {[%clk 0:00:29.7]} 74... Ke6
{[%clk 0:00:17.9]} 75. Bb6 {[%clk 0:00:30.2]} 75... Kd7 {[%clk 0:00:18.8]} 76.
Bc5 {[%clk 0:00:31]} 76... Kc6 {[%clk 0:00:19.7]} 77. Bb6 {[%clk 0:00:31.8]}
77... Kb5 {[%clk 0:00:20.3]} 78. Bc5 {[%clk 0:00:32.7]} 78... Ka4 {[%clk
0:00:20.9]} 79. Bb6 {[%clk 0:00:33.5]} 79... Ka3 {[%clk 0:00:21.2]} 80. Bc5
{[%clk 0:00:34.4]} 80... Ka2 {[%clk 0:00:21]} 81. Bb6 {[%clk 0:00:35.3]} 81...
Kb1 {[%clk 0:00:20.5]} 82. Bc5 {[%clk 0:00:36.2]} 82... Kc1 {[%clk 0:00:21]} 83.
Bb6 {[%clk 0:00:36.8]} 83... Bb5 {[%clk 0:00:21.6]} 84. Bc5 {[%clk 0:00:37.7]}
84... Bc6 {[%clk 0:00:22.3]} 85. Bb6 {[%clk 0:00:38.6]} 85... Kd1 {[%clk
0:00:22.7]} 86. Bc5 {[%clk 0:00:39.5]} 86... Ke2 {[%clk 0:00:23.4]} 87. Bb6
{[%clk 0:00:40.4]} 87... Kf3 {[%clk 0:00:23.9]} 88. Bc5 {[%clk 0:00:41.3]} 88...
Ke4 {[%clk 0:00:24.8]} 89. Bb6 {[%clk 0:00:42.2]} 89... Kf5 {[%clk 0:00:25.6]}
90. Bc5 {[%clk 0:00:43]} 90... Ke6 {[%clk 0:00:26.5]} 91. Bb6 {[%clk 0:00:43.4]}
91... Kd7 {[%clk 0:00:27.4]} 92. Bc5 {[%clk 0:00:44.2]} 92... Kc8 {[%clk
0:00:27.9]} 93. Bb6 {[%clk 0:00:45.1]} 93... Kb8 {[%clk 0:00:28.6]} 94. Bc5
{[%clk 0:00:46]} 94... b5 {[%clk 0:00:29.3]} 95. Bb6 {[%clk 0:00:46.9]} 95...
Kb7 {[%clk 0:00:29.6]} 96. Bc5 {[%clk 0:00:46.9]} 96... Be8 {[%clk 0:00:29.7]}
97. Bb6 {[%clk 0:00:46.7]} 97... Bh5 {[%clk 0:00:30]} 98. Bc5 {[%clk 0:00:46.9]}
98... Be2 {[%clk 0:00:30.7]} 99. Bb6 {[%clk 0:00:46.9]} 99... Bc4 {[%clk
0:00:31.6]} 100. Bc5 {[%clk 0:00:47]} 100... Kc6 {[%clk 0:00:32.5]} 1/2-1/2